fUSD/lending_fUSD_20240718
["ID","MTS","AMOUNT","RATE_DAILY","PERIOD"]
[332490807,1721261431616,-331.77046569,0.00012177,2]
[332490810,1721261431627,-253.22953431,0.00012177,2]
[332490811,1721261431637,-805.5,0.00012178,2]
[332490812,1721261431646,-150.0,0.000126,2]
[332490813,1721261431657,-882.93,0.00012802,2]
[332490814,1721261431668,-3059.07829794,0.00012831,2]
[332490815,1721261431677,-155.8,0.00012831,2]
[332490816,1721261431687,-300.0,0.00012899,2]
[332490817,1721261431702,-15938.0638423,0.000129,2]
[332490818,1721261431713,-7961.9361577,0.000129,2]
[332490819,1721261431722,-3069.67,0.00012989,2]
[332490820,1721261431732,-653.10534714,0.0001299,2]
[332490821,1721261431743,-150.0,0.00012999,2]
[332490822,1721261431753,-20350.58684506,0.00013,2]
[332490823,1721261431762,-1722.18659674,0.00013,2]
[332490824,1721261431772,-223.6,0.0001309,2]
[332490825,1721261431781,-499.99,0.0001309,2]
[332490826,1721261431791,-600.0,0.00013246,2]
[332490827,1721261431800,-808.37,0.00013246,2]
[332490828,1721261431809,-1895.84,0.00013286,2]
[332490829,1721261431819,-496.19,0.00013683,2]
[332490830,1721261431829,-259.1935,0.0001369,2]
[332490831,1721261431838,-190.9388,0.0001369,2]
[332490832,1721261431848,-161.02,0.00013699,2]
[332490833,1721261431858,-486.56,0.0001376,2]
[332490834,1721261431867,-434.54292857,0.0001379,2]
[332490835,1721261431877,-30244.7598406,0.0001379,2]
[332490836,1721261431888,-9115.2047594,0.0001379,2]
[332490837,1721261431897,-4207.9866,0.0001379,2]
[332490838,1721261431907,-1441.557,0.0001379,2]
[332490839,1721261431916,-5943.9515,0.0001379,2]
[332490840,1721261431926,-254.39030764,0.00013799,2]
[332490841,1721261431935,-383.92290817,0.0001382,2]
[332490842,1721261431949,-150.0,0.00013825,2]
[332490843,1721261431966,-152.49076,0.0001386,2]
[332490844,1721261431981,-2357.0,0.0001386,2]
[332490845,1721261431990,-155.0,0.00013889,2]
[332490846,1721261432000,-4847.07962103,0.00013889,2]
[332490847,1721261432009,-87984.5677,0.0001389,2]
[332490848,1721261432018,-901.503,0.0001389,2]
[332490849,1721261432027,-245000.0,0.0001389,2]
[332490850,1721261432037,-363.7067,0.0001389,2]
[332490851,1721261432047,-20379.0301,0.0001389,2]
[332490852,1721261432056,-22266.6348,0.0001389,2]
[332490853,1721261432065,-843.30444946,0.00013891,2]
[332490854,1721261432075,-155.64538712,0.00013899,2]
[332490855,1721261432085,-12409.44772582,0.00013899,2]
[332490856,1721261432094,-2891.793,0.000139,2]
[332490857,1721261432104,-1000.0,0.000139,2]
[332490858,1721261432113,-161.92694401,0.00013911,2]
[332490859,1721261432123,-263.89528427,0.00013912,2]
[332490860,1721261432132,-156.02718558,0.00013912,2]
[332490861,1721261432142,-163.97037707,0.00013912,2]
[332490862,1721261432151,-250.0,0.00013916,2]
[332490863,1721261432160,-155.0,0.00013979,2]
[332490864,1721261432170,-100514.599185,0.0001398,2]
[332490865,1721261432179,-787.00033501,0.00013989,2]
[332490866,1721261432188,-118090.23262043,0.0001399,2]
[332490867,1721261432207,-9299.18366164,0.0001399,2]
[332490868,1721261432221,-270.03107511,0.0001399,2]
[332490869,1721261432243,-4461.3726091,0.0001399,2]
[332490870,1721261432254,-409.23302,0.0001399,2]
[332490871,1721261432265,-47338.17713372,0.0001399,2]
[332490872,1721261432274,-356.38582122,0.00013999,2]
[332490873,1721261432284,-662157.13379043,0.00014,2]
[332490883,1721261437647,-194.17216175,0.00013889,2]
[332490884,1721261437660,-194.17216175,0.00013892,2]
[332490885,1721261437671,-28073.74112183,0.00014,2]
[332490886,1721261437765,-19688.53596414,0.00014,2]
[332490887,1721261437807,-352.21084623,0.00014,2]
[332490888,1721261437910,-1437.652988,0.00014,2]
[332490913,1721261439751,-194.17216175,0.00013895,2]
[332490914,1721261439761,-2702.34593875,0.00014,2]
[332490915,1721261439772,-16040.5,0.00014,2]
[332490916,1721261440016,-5900.98193133,0.00014,2]
[332490917,1721261440028,-307.35280001,0.00014,2]
[332490976,1721261442745,-194.17216175,0.00013897,2]
[332490977,1721261442756,-194.17216175,0.000139,2]
[332490978,1721261442766,-30.57123045,0.00014,2]
[332490979,1721261442777,-13501.70307668,0.00014,2]
[332490980,1721261442796,-972859.62123552,0.00014,2]
[332490981,1721261442903,-1778680.97238548,0.00014,2]
[332490982,1721261443010,-6069.28380622,0.00014,2]
[332490994,1721261445949,-3500.49700005,0.00014,2]
[332491023,1721262320147,3679.02580067,9e-05,2]
[332491024,1721262358505,305.3944943,0.00010909,2]
[332491025,1721262390662,12680.77494575,9e-05,2]
[332491030,1721262449405,196.73956624,0.00010909,2]
[332491034,1721262616247,333.57130716,0.00010909,2]
[332491035,1721262632312,-203.07221498,0.00011988,2]
[332491036,1721262632322,-158.69314614,0.00011988,2]
[332491037,1721262632632,-442.67015877,0.00011989,2]
[332491038,1721262632647,-520.90383115,0.00011989,2]
[332491040,1721262632658,-227.83459603,0.00011989,2]
[332491042,1721262632667,-293.69684138,0.00011989,2]
[332491044,1721262632678,-2770.79493602,0.00011989,2]
[332491045,1721262632687,-1138.39880609,0.0001199,2]
[332491046,1721262632697,-2351.5107269,0.0001199,2]
[332491047,1721262632706,-855.54,0.00012005,2]
[332491048,1721262632715,-194.87156642,0.00012999,2]
[332491049,1721262632724,-195.80245042,0.00012999,2]
[332491050,1721262632734,-550.0,0.00013,2]
[332491051,1721262632743,-152.08158415,0.00013042,2]
[332491052,1721262632754,-66.79841585,0.00013042,2]
[332491053,1721262632764,-433.20158415,0.00013191,2]
[332491054,1721262632775,-481.13236969,0.00013191,2]
[332491055,1721262632785,-12121.37521889,0.00013191,2]
[332491056,1721262632796,-256.269,0.00013191,2]
[332491057,1721262632808,-327.39805379,0.00013191,2]
[332491058,1721262632819,-1405.21514294,0.00013191,2]
[332491059,1721262637810,-9725.52202952,0.00013191,2]
[332491060,1721262637820,-173.7,0.00013193,2]
[332491061,1721262637829,-312.85266416,0.00013222,2]
[332491062,1721262637839,-521.44904239,0.00013223,2]
[332491063,1721262637849,-680.0,0.0001337,2]
[332491064,1721262637858,-254.48154078,0.00013588,2]
[332491065,1721262637871,-448.91,0.00013589,2]
[332491066,1721262637880,-194.3667123,0.0001369,2]
[332491067,1721262637889,-299.99,0.00013699,2]
[332491068,1721262637899,-161.05,0.00013699,2]
[332491069,1721262637908,-1336.7166,0.0001379,2]
[332491070,1721262637918,-2164.87912,0.0001386,2]
[332491071,1721262637927,-155.09351335,0.00013888,2]
[332491072,1721262637937,-150.0,0.00013889,2]
[332491073,1721262637949,-155.0,0.00013889,2]
[332491074,1721262637959,-6644.6811,0.0001389,2]
[332491075,1721262637968,-391.08863565,0.00013899,2]
[332491076,1721262637978,-228.95127684,0.00013899,2]
[332491077,1721262637988,-5380.94836795,0.000139,2]
[332491095,1721262638633,-3253.8447,0.000139,2]
[332491097,1721262638644,-266.29723205,0.000139,2]
[332491099,1721262638653,-187.05307562,0.000139,2]
[332491101,1721262638662,-194.3667123,0.000139,2]
[332491103,1721262638672,-72.99488003,0.00013989,2]
[332491105,1721262638684,-131.49325896,0.00013989,2]
[332491107,1721262638693,-3232.09340028,0.0001399,2]
[332491109,1721262638702,-738.44280753,0.0001399,2]
[332491111,1721262638713,-865.69,0.0001399,2]
[332491113,1721262638725,-9846.52340112,0.0001399,2]
[332491126,1721262640143,-66160.52853974,0.0001399,2]
[332491127,1721262640202,-274.59915042,0.0001399,2]
[332491128,1721262640260,-490.39151482,0.0001399,2]
[332491129,1721262640374,-129801.4976168,0.0001399,2]
[332491130,1721262640438,-17343.68528114,0.0001399,2]
[332491131,1721262640606,-3426.22688581,0.0001399,2]
[332491132,1721262640617,-2344.47115354,0.0001399,2]
[332491133,1721262640667,-658.39,0.0001399,2]
[332491138,1721262642910,-313.91435769,0.00013286,2]
[332491139,1721262642921,-273.2000002,0.00013286,2]
[332491140,1721262642933,-1282.545216,0.00013286,2]
[332491141,1721262643025,-1911.61666551,0.00013286,2]
[332491146,1721262643080,-672.13278554,0.00013286,2]
[332491151,1721262643138,-5848.67097506,0.00013286,2]
[332491154,1721262643148,-1870.47932733,0.0001399,2]
[332491179,1721262645884,-320.373918,0.0001399,2]
[332491181,1721262645896,-1592.51588198,0.0001399,2]
[332491183,1721262645907,-3325.51142404,0.0001399,2]
[332491189,1721262645996,-422.91126348,0.0001399,2]
[332491192,1721262646008,-12484.02197525,0.0001399,2]
[332491194,1721262646019,-289.4595582,0.00013999,2]
[332491196,1721262646032,-218.87614753,0.00013999,2]
[332491198,1721262646042,-500.0,0.00013999,2]
[332491200,1721262646052,-154.999999,0.00014,2]
[332491202,1721262646062,-6485.85414822,0.00014,2]
[332491204,1721262646074,-22519.49385085,0.00014,2]
[332491206,1721262646085,-6403.00000001,0.00014,2]
[332491208,1721262646171,-7194.52670467,0.00014,2]
[332491210,1721262646184,-473.58905429,0.00014,2]
[332491211,1721262646196,-735.568365,0.00014,2]
[332491213,1721263163709,166.59,0.00010938,2]
[332491214,1721263267570,162.89,0.00018849,30]
[332491216,1721263833309,-194.3667123,0.00011396,2]
[332491217,1721263833319,-820.12856543,0.00011492,2]
[332491218,1721263833330,-4782.74210213,0.00011492,2]
[332491219,1721263833341,-2513.69867586,0.00011493,2]
[332491220,1721263833351,-18358.93167611,0.00011493,2]
[332491221,1721263833375,-1147.32716098,0.00011493,2]
[332491222,1721263833387,-345.5,0.00011493,2]
[332491223,1721263833400,-420.34730976,0.00011493,2]
[332491224,1721263833411,-976.03245698,0.00011493,2]
[332491225,1721263833478,-536.45592939,0.00011493,2]
[332491226,1721263833536,-2965.51886576,0.00011493,2]
[332491227,1721263833546,-155.09401782,0.00011494,2]
[332491228,1721263833556,-529.53885197,0.00011494,2]
[332491229,1721263833565,-522.2814596,0.00011494,2]
[332491230,1721263833575,-155.37633985,0.00011495,2]
[332491231,1721263833585,-2381.90456599,0.00011495,2]
[332491232,1721263833595,-155.74846367,0.00011495,2]
[332491233,1721263833604,-235.78185267,0.00011497,2]
[332491234,1721263833614,-155.0,0.00011498,2]
[332491235,1721263833623,-870.78,0.00011508,2]
[332491236,1721263833634,-724.82219683,0.00012625,2]
[332491237,1721263833644,-155.0,0.00012625,2]
[332491238,1721263833653,-155.0,0.00012629,2]
[332491239,1721263833663,-334.23,0.00013016,2]
[332491240,1721263833673,-744.0,0.00013107,2]
[332491241,1721263833682,-216.82,0.00013134,2]
[332491242,1721263833691,-5782.25,0.00013344,2]
[332491243,1721263833700,-935.84003892,0.00013648,2]
[332491244,1721263833710,-250.0,0.00013649,2]
[332491245,1721263833719,-161.06,0.00013768,2]
[332491246,1721263833728,-870.78,0.00013772,2]
[332491247,1721263833737,-1254.7553,0.000139,2]
[332491248,1721263833746,-15389.3223,0.000139,2]
[332491249,1721263833756,-206.05614912,0.000139,2]
[332491250,1721263833765,-12250.813957,0.0001399,2]
[332491251,1721263833774,-612.0,0.00014,2]
[332491252,1721263833783,-70161.90100929,0.00014,2]
[332491253,1721263833794,-11734.88733532,0.00014,2]
[332491254,1721263833805,-17247.662,0.00014,2]
[332491255,1721263837986,-24750.11339898,0.00011494,2]
[332491256,1721263837996,-12749.15218375,0.00014,2]
[332491257,1721263838051,-8559.29733584,0.00014,2]
[332491258,1721263838063,-4462.60690502,0.00014,2]
[332491259,1721263838118,-12338.90693721,0.00014,2]
[332491260,1721263838178,-13464.927446,0.00014,2]
[332491261,1721263838190,-11371.02566343,0.00014,2]
[332491262,1721263838239,-11100.39600229,0.00014,2]
[332491263,1721263838251,-9551.3770682,0.00014,2]
[332491264,1721263838265,-29419.7076725,0.00014,2]
[332491276,1721263840219,-1892.91935998,0.00014,2]
[332491277,1721263840231,-1608.52092669,0.00014,2]
[332491278,1721263840243,-1829.78079802,0.00014,2]
[332491279,1721263840254,-1320.59568758,0.00014,2]
[332491280,1721263840265,-1955.05118,0.00014,2]
[332491281,1721263840277,-683.79903967,0.00014,2]
[332491282,1721263840288,-63875.05574654,0.00014,2]
[332491283,1721263840343,-760.74789201,0.00014,2]
[332491284,1721263840354,-2536.80913655,0.00014,2]
[332491285,1721263840366,-5019.14144746,0.00014,2]
[332491286,1721263840514,-3698.49104601,0.00014,2]
[332491322,1721263843228,-648.779983,0.00014,2]
[332491323,1721263843239,-315.69999997,0.00014,2]
[332491324,1721263843251,-552.0700916,0.00014,2]
[332491325,1721263843392,-14886.63927411,0.00014,2]
[332491326,1721263843404,-545.9316267,0.00014,2]
[332491327,1721263843507,-7989.48609949,0.00014,2]
[332491339,1721263846922,-554.0,0.00014,2]
[332491340,1721263846934,-2516.60000002,0.00014,2]
[332491341,1721263846947,-8609.01591629,0.00014,2]
[332491342,1721263846958,-956.45,0.00014,2]
[332491343,1721263846969,-584.74,0.00014,2]
[332491344,1721263846985,-4852.36076937,0.00014,2]
[332491345,1721263846996,-1898.86705973,0.00014,2]
[332491346,1721263870781,158.24,0.00018849,30]
[332491359,1721264484887,-250.0,0.00012001,2]
[332491360,1721264541759,15081.67376229,0.00012001,2]
[332491361,1721264624979,534.9197,0.00011901,2]
[332491362,1721264770296,853.03,0.00010843,2]
[332491363,1721264982885,189.19335579,0.00012001,2]
[332491366,1721265032407,-235.92833779,0.00012629,2]
[332491367,1721265032417,-1901.62,0.0001265,2]
[332491368,1721265032428,-250.0,0.00012677,2]
[332491369,1721265032439,-1672.07,0.00012785,2]
[332491370,1721265032448,-175.1,0.00012827,2]
[332491371,1721265032458,-1584.45286376,0.00012827,2]
[332491372,1721265032467,-164.89,0.00012853,2]
[332491373,1721265032734,-300.0,0.00012998,2]
[332491374,1721265032748,-24750.11339898,0.00012999,2]
[332491375,1721265032758,-550.0,0.00013,2]
[332491376,1721265032767,-853.03,0.00013107,2]
[332491377,1721265032776,-439.21770875,0.00013123,2]
[332491378,1721265032786,-476.45,0.00013124,2]
[332491379,1721265032800,-176.97443588,0.00013131,2]
[332491380,1721265032810,-1254.86926723,0.00013132,2]
[332491381,1721265032819,-620.76,0.00013133,2]
[332491383,1721265032829,-419.04529889,0.00013142,2]
[332491384,1721265032838,-367.14716003,0.00013344,2]
[332491386,1721265032848,-2722.82,0.00013345,2]
[332491388,1721265032858,-499.99,0.00013345,2]
[332491390,1721265032867,-155.0,0.00013347,2]
[332491392,1721265032879,-155.57295146,0.00013428,2]
[332491394,1721265032889,-244.62743291,0.00013428,2]
[332491396,1721265032898,-875.2,0.00013429,2]
[332491398,1721265032907,-162.6,0.00013541,2]
[332491400,1721265032916,-379.61313155,0.00013599,2]
[332491402,1721265032926,-508.46,0.000136,2]
[332491404,1721265032935,-300.0,0.000136,2]
[332491406,1721265032944,-161.07,0.00013699,2]
[332491408,1721265032954,-201.61610879,0.000138,2]
[332491410,1721265032963,-2804.06593,0.0001386,2]
[332491412,1721265032973,-500.0,0.00013887,2]
[332491413,1721265032982,-200.0,0.00013887,2]
[332491415,1721265032991,-203.44006433,0.00013887,2]
[332491417,1721265033000,-500.0,0.00013888,2]
[332491419,1721265033010,-500.0,0.00013888,2]
[332491421,1721265033019,-500.0,0.00013888,2]
[332491423,1721265033028,-500.0,0.00013888,2]
[332491425,1721265033038,-200.0,0.00013888,2]
[332491427,1721265033047,-178.6775,0.0001389,2]
[332491429,1721265033056,-192.11,0.0001389,3]
[332491431,1721265033066,-944.0553,0.000139,2]
[332491433,1721265033075,-164.56359998,0.000139,2]
[332491435,1721265033085,-14403.15772304,0.000139,2]
[332491436,1721265033122,-22747.0306,0.000139,2]
[332491437,1721265033134,-102849.81167696,0.000139,2]
[332491438,1721265033143,-767.8248,0.000139,2]
[332491439,1721265033152,-1292.99345972,0.000139,2]
[332491440,1721265033161,-1207.665,0.000139,2]
[332491441,1721265033172,-176.15716979,0.000139,2]
[332491442,1721265033181,-176.15716976,0.00013907,2]
[332491443,1721265033190,-176.15716976,0.00013915,2]
[332491444,1721265033200,-946.86801714,0.0001392,2]
[332491445,1721265033209,-176.15716976,0.00013922,2]
[332491446,1721265033219,-155.46974383,0.00013929,2]
[332491447,1721265033230,-533.6633,0.0001393,2]
[332491448,1721265033239,-2163.51,0.0001399,2]
[332491449,1721265033248,-1500.82639156,0.0001399,2]
[332491450,1721265033258,-367.30615013,0.00013996,2]
[332491451,1721265033267,-30674.92515867,0.00013997,2]
[332491452,1721265033276,-150.01,0.00013999,2]
[332491453,1721265033286,-2152.10415882,0.00013999,2]
[332491454,1721265033296,-548.0,0.00014,2]
[332491455,1721265033305,-224419.3997689,0.00014,2]
[332491456,1721265033316,-148812.1225,0.00014,2]
[332491460,1721265038622,-18672.97704999,0.00014,2]
[332491461,1721265040241,-547.52749393,0.00013999,2]
[332491462,1721265040254,-145.76607553,0.00013999,2]
[332491463,1721265040264,-792.29948555,0.00014,2]
[332491464,1721265040275,-265.8551209,0.00014,2]
[332491465,1721265040321,-730.07124766,0.00014,2]
[332491466,1721265040405,-1489.433276,0.00014,2]
[332491467,1721265040485,-574.35900344,0.00014,2]
[332491468,1721265040565,-731.17635156,0.00014,2]
[332491469,1721265040577,-293.20440488,0.00014,2]
[332491470,1721265040588,-341.815,0.00014,2]
[332491471,1721265040599,-2293.754532,0.00014,2]
[332491472,1721265040647,-500.0,0.00014,2]
[332491473,1721265040659,-389.87209083,0.00014,2]
[332491479,1721265043268,-961432.67586142,0.00014,2]
[332491480,1721265043278,-767.47924399,0.00014,2]
[332491481,1721265043287,-482745.92970793,0.00014,2]
[332491482,1721265043346,-376454.8393442,0.00014,2]
[332491483,1721265043358,-840617.27498038,0.00014,2]
[332491484,1721265043492,-684.00101335,0.00014,2]
[332491502,1721265046214,-2497.79507697,0.00014,2]
[332491505,1721265046226,-1462.76416002,0.00014,2]
[332491506,1721265046238,-1002.44274149,0.00014,2]
[332491509,1721265046249,-6236.35171834,0.00014,2]
[332491511,1721265046259,-6608.37094698,0.00014,2]
[332491513,1721265046275,-1774.86208729,0.00014,2]
[332491515,1721265046286,-1990.66832274,0.00014,2]
[332491518,1721265046297,-326.1616791,0.00014,2]
[332491520,1721265046308,-12916.53216078,0.00014,2]
[332491522,1721265046318,-1313.87865291,0.00014,2]
[332491525,1721265046336,-824.59977352,0.00014,2]
[332491527,1721265046353,-6000.0,0.00014,2]
[332491530,1721265046363,-768.06384375,0.00014,2]
[332491533,1721265046384,-2191.48464141,0.00014,2]
[332491535,1721265046395,-1955.42660686,0.00014,2]
[332491536,1721265046407,-322.51994525,0.00014,2]
[332491537,1721265046450,-43005.23091192,0.00014,2]
[332491538,1721265046463,-11173.27156439,0.00014,2]
[332491539,1721265046474,-2372.81520537,0.00014,2]
[332491540,1721265046487,-25492.68481151,0.00014,2]
[332491541,1721265046499,-3608.5155862,0.00014,2]
[332491542,1721265046515,-1383.40857251,0.00014,2]
[332491543,1721265046527,-7511.43041172,0.00014,2]
[332491544,1721265046552,-32951.44758523,0.00014,2]
[332491545,1721265046564,-7442.0543863,0.00014,2]
[332491552,1721265457909,836.87,0.00011133,2]
[332491553,1721265639926,162.89,0.00018849,30]
[332491554,1721265937010,2235.54367464,0.00011,2]
[332491556,1721266025201,828.32,0.00010806,2]
[332491558,1721266084370,1190.44950728,0.0001,2]
[332491559,1721266084395,375.81641212,0.0001,2]
[332491560,1721266203218,297.998808,0.00011,2]
[332491561,1721266214967,371.65236417,0.0001,2]
[332491563,1721266232482,-487.65931293,0.00012021,2]
[332491564,1721266232495,-300.7497307,0.00012021,2]
[332491565,1721266232508,-131.42060982,0.00012021,2]
[332491566,1721266232517,-255.43367995,0.0001212,2]
[332491567,1721266232527,-195.15625139,0.00012121,2]
[332491568,1721266232537,-1254.40119885,0.00012566,2]
[332491569,1721266232547,-2980.31,0.00012567,2]
[332491570,1721266232557,-166.94,0.00012816,2]
[332491571,1721266232566,-156.67050622,0.00012821,2]
[332491572,1721266232576,-162.33447912,0.00012822,2]
[332491573,1721266232586,-5297.3557,0.00012833,2]
[332491574,1721266232595,-162.6,0.00012923,2]
[332491575,1721266232605,-1092.9533,0.00012933,2]
[332491576,1721266232615,-550.0,0.00013,2]
[332491577,1721266232624,-155.07804391,0.00013044,2]
[332491578,1721266232635,-3079.48,0.00013045,2]
[332491579,1721266232644,-365.90529505,0.00013069,2]
[332491580,1721266232654,-828.32,0.0001307,2]
[332491581,1721266232664,-155.0,0.00013075,2]
[332491582,1721266232674,-356.60665527,0.00013095,2]
[332491583,1721266232683,-155.0,0.00013096,2]
[332491584,1721266232693,-155.0,0.00013096,2]
[332491585,1721266232703,-347.04036643,0.00013179,2]
[332491586,1721266232713,-1000.0,0.0001318,2]
[332491587,1721266232722,-155.0,0.00013439,2]
[332491588,1721266232731,-180.77,0.0001344,2]
[332491589,1721266232741,-218.46557785,0.00013695,2]
[332491590,1721266232751,-169.02,0.00013696,2]
[332491591,1721266232760,-424.66,0.000137,2]
[332491592,1721266232770,-590.11,0.000137,2]
[332491593,1721266232780,-683.40596562,0.000137,2]
[332491594,1721266232919,-342.59403438,0.000137,2]
[332491595,1721266232929,-266.97875768,0.000138,2]
[332491596,1721266233073,-1071.32430337,0.000138,2]
[332491597,1721266233085,-829.59060237,0.000138,2]
[332491598,1721266238601,-562.99816444,0.000138,2]
[332491652,1721266241143,-641.95777214,0.000138,2]
[332491653,1721266241153,-312.2862,0.000138,2]
[332491654,1721266241163,-150.0,0.000138,2]
[332491655,1721266241175,-500.0,0.00013888,2]
[332491656,1721266241184,-200.0,0.00013888,2]
[332491657,1721266241194,-155.0,0.00013889,2]
[332491658,1721266241203,-181.45449792,0.0001389,2]
[332491659,1721266241213,-500.0,0.0001389,2]
[332491660,1721266241223,-2011.1208,0.0001389,2]
[332491661,1721266241233,-277.17941451,0.00013899,2]
[332491662,1721266241242,-183.83578229,0.00013899,2]
[332491663,1721266241254,-343.71817807,0.00013899,2]
[332491664,1721266241263,-684.0767223,0.000139,2]
[332491665,1721266241276,-1018.5816157,0.000139,2]
[332491666,1721266241285,-191.59871024,0.000139,2]
[332491667,1721266241294,-222.39746096,0.000139,2]
[332491668,1721266241304,-176.21849159,0.000139,2]
[332491670,1721266241314,-438.58676465,0.00013989,2]
[332491672,1721266241323,-355.507343,0.00013989,2]
[332491673,1721266241332,-15490.00961386,0.0001399,2]
[332491686,1721266244286,-155.0,0.00013094,2]
[332491687,1721266244296,-160817.67846514,0.0001399,2]
[332491688,1721266244306,-1089.73702779,0.00013999,2]
[332491689,1721266244316,-250.0,0.00013999,2]
[332491690,1721266244325,-250.0,0.00013999,2]
[332491691,1721266244335,-537.0,0.00014,2]
[332491692,1721266244345,-914840.72618827,0.00014,2]
[332491693,1721266244357,-363.15560992,0.00014,2]
[332491694,1721266244368,-2758.29047913,0.00014,2]
[332491695,1721266244380,-6463.52098676,0.00014,2]
[332491696,1721266246617,-155.0,0.00013179,2]
[332491697,1721266246627,-269.0,0.0001386,2]
[332491698,1721266246637,-5766.06320505,0.00014,2]
[332491699,1721266246648,-8792.89332579,0.00014,2]
[332491700,1721266246660,-794.0033412,0.00014,2]
[332491701,1721266246672,-442.82396974,0.00014,2]
[332491702,1721266246685,-1335.53117217,0.00014,2]
[332491703,1721266246696,-70855.8526982,0.00014,2]
[332491704,1721266246779,-891.94150928,0.00014,2]
[332491705,1721266246790,-353.504,0.00014,2]
[332491706,1721266247403,-1624.2921,0.00014,2]
[332491707,1721266337216,193.72,0.00018849,30]
[332491714,1721267014288,162.89,0.00018849,30]
[332491716,1721267251662,150.48,0.00010683,2]
[332491718,1721267334342,263.5806196,0.00010683,2]
[332491733,1721267430579,236026.60741064,0.00010683,2]
[332491736,1721267431897,-364.95974836,0.00011465,2]
[332491737,1721267431909,-849.9,0.00011466,2]
[332491738,1721267431919,-174.05,0.00012967,2]
[332491739,1721267431928,-747.61,0.00013098,2]
[332491740,1721267431938,-193.05,0.00013166,2]
[332491741,1721267431947,-402.65,0.0001318,2]
[332491742,1721267431957,-180.77,0.00013569,2]
[332491743,1721267431968,-1445.31971311,0.00013601,2]
[332491744,1721267431977,-600.59329332,0.00013601,2]
[332491745,1721267431987,-1000.0,0.00013602,2]
[332491746,1721267431997,-849.9,0.0001373,2]
[332491747,1721267432008,-1129.19391798,0.00013859,2]
[332491748,1721267432020,-830.0,0.0001386,2]
[332491749,1721267432029,-2950.68205,0.0001386,2]
[332491750,1721267432039,-500.0,0.00013888,2]
[332491751,1721267432048,-200.0,0.00013888,2]
[332491752,1721267432058,-155.0,0.00013889,2]
[332491753,1721267432067,-305.4426,0.0001389,2]
[332491754,1721267432076,-644.5624,0.0001389,2]
[332491755,1721267432086,-155.0,0.00013898,2]
[332491756,1721267432095,-1688.86,0.00013899,2]
[332491757,1721267432104,-1574.3559,0.00013899,2]
[332491758,1721267432114,-539.32150935,0.00013899,2]
[332491759,1721267432123,-206.1664,0.000139,2]
[332491760,1721267432133,-166.7790887,0.000139,2]
[332491761,1721267432142,-176.64093737,0.000139,2]
[332491762,1721267432151,-363.4862,0.000139,2]
[332491763,1721267432162,-1996.87565605,0.00013979,2]
[332491764,1721267432173,-244.61543837,0.00013979,2]
[332491765,1721267432182,-200.19231872,0.00013979,2]
[332491766,1721267432192,-2873.45847693,0.0001398,2]
[332491767,1721267432202,-226677.767787,0.0001399,2]
[332491768,1721267432212,-2179.47405557,0.00013999,2]
[332491769,1721267432221,-71919.67286874,0.00014,2]
[332491770,1721267432233,-999.97,0.00014,2]
[332491771,1721267432862,-1051.83423386,0.00014,2]
[332491773,1721267437753,-565.04870476,0.00014,2]
[332491774,1721267437966,-4592.48719786,0.00014,2]
[332491775,1721267437978,-56008.09691331,0.00014,2]
[332491776,1721267437988,-136781.73755422,0.00014,2]
[332491777,1721267438001,-101521.93423243,0.00014,2]
[332491804,1721267442957,-1065977.09517527,0.00014,2]
[332491805,1721267442967,-2958.90171,0.00014,2]
[332491806,1721267442976,-14672.7740821,0.00014001,2]
[332491807,1721267442986,-920.3874539,0.0001401,2]
[332491808,1721267442995,-155.0,0.0001402,2]
[332491809,1721267443005,-2201.1156415,0.00014021,2]
[332491810,1721267443014,-263.29819219,0.00014099,2]
[332491811,1721267443023,-300.25,0.000141,2]
[332491812,1721267443032,-322.9,0.000141,2]